Workbook

Sheet MYP, MSS
B1: Aleksi Savola | E1: 11.2.2003 Vimpeli
B2: YKKÖSPESIS | E2: Runkosarja | L2: Runkosarja TOP-10 | Q2: Jatkosarjat | X2: SUOMENSARJA | AA2: Runkosarja | AH2: Runkosarja TOP-10 | AM2: Jatkosarjat
B3: Vuosi | C3: Sija | D3: Seura | E3: OTT | F3: KUN | G3: LÖI | H3: TOI | I3: KL | J3: KL-% | L3: LÖI | M3: TOI | N3: L+T | O3: KL | Q3: OTT | R3: KUN | S3: LÖI | T3: TOI | U3: KL | V3: KL-% | X3: Vuosi | Y3: Sija | Z3: Seura | AA3: OTT | AB3: KUN | AC3: LÖI | AD3: TOI | AE3: KL | AF3: KL-% | AH3: LÖI | AI3: TOI | AJ3: L+T | AK3: KL | AM3: OTT | AN3: KUN | AO3: LÖI | AP3: TOI | AQ3: KL | AR3: KL-%
X4: 2019 | Y4: 5. | Z4: ViVe 2 | AA4: 13 | AB4: 0 | AC4: 10 | AD4: 7 | AE4: 40 | AF4: 44.9 % | AG4: 89
X5: 2020 | Y5: 1. | Z5: ViVe 2 | AA5: 8 | AB5: 2 | AC5: 4 | AD5: 9 | AE5: 22 | AF5: 50.0 % | AG5: 44 | AM5: 4 | AN5: 0 | AO5: 0 | AP5: 3 | AQ5: 9 | AR5: 40.9 % | AS5: 22
B6: 2021 | C6: 10. | D6: VäVi | E6: 4 | F6: 0 | G6: 1 | H6: 0 | I6: 2 | J6: 18.2 % | K6: 11 | X6: 2021 | Y6: 1. | Z6: ViVe 2 | AA6: 14 | AB6: 1 | AC6: 15 | AD6: 28 | AE6: 55 | AF6: 67.1 % | AG6: 82
X7: 2022 | Y7: 2. | Z7: ViVe 2 | AA7: 8 | AB7: 0 | AC7: 7 | AD7: 6 | AE7: 34 | AF7: 65.4 % | AG7: 52 | AM7: 1 | AN7: 0 | AO7: 0 | AP7: 0 | AQ7: 2 | AR7: 40.0 % | AS7: 5
X8: 2023 | Y8: 3. | Z8: ViVe 2 | AA8: 14 | AB8: 1 | AC8: 17 | AD8: 5 | AE8: 44 | AF8: 55.7 % | AG8: 79 | AM8: 2 | AN8: 0 | AO8: 0 | AP8: 1 | AQ8: 4 | AR8: 44.4 % | AS8: 9
B9: YHTEENSÄ | E9: =SUM(E4:E8) -> 4 | F9: =SUM(F4:F8) -> 0 | G9: 1 | H9: 0 | I9: 2 | J9: =PRODUCT(I9/K9) -> 18.2 % | K9: =SUM(K4:K8) -> 11 | Q9: =SUM(Q4:Q8) -> 0 | R9: =SUM(R4:R8) -> 0 | S9: 0 | T9: 0 | U9: 0 | V9: 0.0 % | W9: =SUM(W8:W8) -> 0 | X9: YHTEENSÄ | AA9: =SUM(AA4:AA8) -> 57 | AB9: =SUM(AB4:AB8) -> 4 | AC9: 53 | AD9: 55 | AE9: 195 | AF9: =PRODUCT(AE9/AG9) -> 56.4 % | AG9: 346 | AM9: =SUM(AM4:AM8) -> 7 | AN9: =SUM(AN4:AN8) -> 0 | AO9: 0 | AP9: 4 | AQ9: 15 | AR9: =PRODUCT(AQ9/AS9) -> 41.7 % | AS9: =SUM(AS4:AS8) -> 36
B11: KAIKKI OTTELUT | E11: OTT | F11: KUN | G11: LÖI | H11: TOI | I11: KL | J11: KL-% | L11: ka/L | M11: ka/T | N11: ka/l+t | O11: ka/kl | R11: Seurat | T11: ViVe = Vimpelin Veto (1934), kasvattajaseura
B12: SUPERPESIS | E12: 0 | F12: 0 | G12: 0 | H12: 0 | I12: 0 | J12: 0.0 % | L12: 0.00 | M12: 0.00 | N12: 0.00 | O12: 0.00 | T12: VäVi = Vähänkyrön Viesti (1938)
B13: YKKÖSPESIS | E13: =PRODUCT(E9+Q9) -> 4 | F13: =PRODUCT(F9+R9) -> 0 | G13: =PRODUCT(G9+S9) -> 1 | H13: =PRODUCT(H9+T9) -> 0 | I13: =PRODUCT(I9+U9) -> 2 | J13: =PRODUCT(I13/K13) -> 18.2 % | K13: =PRODUCT(K9+W9) -> 11 | L13: =PRODUCT((F13+G13)/E13) -> 0.25 | M13: =PRODUCT(H13/E13) -> 0.00 | N13: =PRODUCT((F13+G13+H13)/E13) -> 0.25 | O13: =PRODUCT(I13/E13) -> 0.50
B14: SUOMENSARJA | E14: =PRODUCT(AA9+AM9) -> 64 | F14: =PRODUCT(AB9+AN9) -> 4 | G14: =PRODUCT(AC9+AO9) -> 53 | H14: =PRODUCT(AD9+AP9) -> 59 | I14: =PRODUCT(AE9+AQ9) -> 210 | J14: =PRODUCT(I14/K14) -> 55.0 % | K14: =PRODUCT(AG9+AS9) -> 382 | L14: =PRODUCT((F14+G14)/E14) -> 0.89 | M14: =PRODUCT(H14/E14) -> 0.92 | N14: =PRODUCT((F14+G14+H14)/E14) -> 1.81 | O14: =PRODUCT(I14/E14) -> 3.28
B15: YHTEENSÄ | E15: =SUM(E12:E14) -> 68 | F15: =SUM(F12:F14) -> 4 | G15: 54 | H15: 59 | I15: 212 | J15: =PRODUCT(I15/K15) -> 53.9 % | K15: =SUM(K12:K14) -> 393 | L15: =PRODUCT((F15+G15)/E15) -> 0.85 | M15: =PRODUCT(H15/E15) -> 0.87 | N15: =PRODUCT((F15+G15+H15)/E15) -> 1.72 | O15: =PRODUCT(I15/E15) -> 3.12
